bitfinex-derivatives/quotes_SOLF0:USTF0_20250803
["timestamp","ask_amount","ask_price","bid_price","bid_amount"]
[1754244881502,13.97037948,161.7,161.69,3.44]
[1754244881900,13.97037766,161.7,161.69,3.44]
[1754244884103,13.97133493,161.7,161.69,3.44]
[1754244887405,13.96492731,161.7,161.69,3.44]
[1754244890308,13.96539697,161.7,161.69,3.44]
[1754244891009,7.78119697,161.7,161.69,3.44]
[1754244892209,13.96539697,161.7,161.69,3.44]
[1754244900515,13.85367275,161.7,161.69,3.44]
[1754244902520,7.66947275,161.7,161.65,3.99750334]
[1754244902818,6.89205225,161.68,161.65,3.39]
[1754244903020,6.1858,161.66,161.65,3.39]
[1754244903220,13.85527275,161.66,161.65,3.39]
[1754244904318,7.66947275,161.66,161.65,3.39]
[1754244904624,6.89205225,161.72,161.65,3.39]
[1754244904823,6.89205225,161.72,161.71,3.99750334]
[1754244904824,6.1835,161.72,161.71,3.99750334]
[1754244905121,3.38,161.72,161.71,3.99750334]
[1754244905313,9.5635,161.72,161.71,3.99750334]
[1754244905519,9.5635,161.72,161.71,7.38750334]
[1754244906919,3.38,161.72,161.71,7.38750334]
[1754244908222,9.5635,161.72,161.71,7.38750334]
[1754244910521,9.5635,161.72,161.71,3.99750334]
[1754244910722,9.5635,161.72,161.71,7.38750334]
[1754244912224,3.38,161.72,161.71,7.38750334]
[1754244912422,3.38,161.74,161.71,3.99750334]
[1754244912629,3.38,161.74,161.72,3.39]
[1754244914226,9.5831,161.73,161.72,3.39]
[1754244914926,3.4,161.72,161.71,7.20750334]
[1754244916426,10.87917899,161.72,161.71,7.20750334]
[1754244917029,7.47917899,161.72,161.71,7.20750334]
[1754244918032,7.47805419,161.72,161.71,7.20750334]
[1754244918520,10.87805419,161.72,161.71,7.20750334]
[1754244919834,7.47805419,161.72,161.71,7.20750334]
[1754244923025,10.87805419,161.72,161.71,7.20750334]
[1754244929337,3.4,161.71,161.68,3.99750334]
[1754244929534,3.4,161.69,161.68,3.99750334]
[1754244929739,10.87113284,161.69,161.68,3.99750334]
[1754244930135,10.87113284,161.69,161.68,7.20750334]
[1754244930340,10.87113284,161.69,161.68,3.99750334]
[1754244930641,10.87113284,161.69,161.68,7.20750334]
[1754244931434,10.87113284,161.69,161.68,3.99750334]
[1754244933940,10.87113284,161.69,161.68,7.20750334]
[1754244938251,10.86295982,161.69,161.68,7.20750334]
[1754244940047,7.46295982,161.69,161.67,3.21]
[1754244940249,6.27595028,161.68,161.67,3.21]
[1754244942149,10.86156952,161.68,161.67,3.21]
[1754244943143,3.4,161.67,161.65,3.21]
[1754244943346,6.27595028,161.66,161.65,3.21]
[1754244943743,3.34,161.65,161.56,3.33]
[1754244943951,3.34,161.63,161.61,3.33]
[1754244944548,2.87327483,161.62,161.61,3.33]
[1754244944943,2.87327483,161.62,161.61,6.1877]
[1754244945141,2.87327483,161.62,161.61,3.33]
[1754244945349,6.21327483,161.62,161.61,3.33]
[1754244945650,2.87327483,161.62,161.61,7.32750334]
[1754244946248,6.21327483,161.62,161.61,7.32750334]
[1754244946849,6.21327483,161.62,161.61,3.33]
[1754244947351,2.87327483,161.62,161.6,7.32750334]
[1754244947647,6.21327483,161.61,161.59,3.33]
[1754244947847,6.21327483,161.61,161.55,3.99750334]
[1754244947848,3.34,161.59,161.55,3.99750334]
[1754244948047,2.86968935,161.58,161.55,3.99750334]
[1754244948248,3.34,161.57,161.55,3.99750334]
[1754244948655,3.34,161.57,161.56,3.33]
[1754244950150,3.34,161.57,161.55,7.32750334]
[1754244950351,3.34,161.57,161.55,3.33]
[1754244951354,3.34,161.57,161.54,3.33]
[1754244951855,3.34,161.57,161.53,3.33]
[1754244952047,12.446314,161.57,161.51,6.1915]
[1754244952254,3.34,161.56,161.52,3.33]
[1754244953349,3.34,161.55,161.52,3.33]
[1754244953752,3.34,161.55,161.52,9.5211]
[1754244953949,6.256814,161.57,161.53,3.33]
[1754244954150,3.34,161.58,161.53,6.1904]
[1754244954348,6.1892,161.57,161.54,3.33]
[1754244954553,3.34,161.56,161.54,3.33]
[1754244956254,3.34,161.56,161.53,6.1906]
[1754244956553,3.34,161.56,161.55,3.33]
[1754244957147,3.34,161.56,161.53,6.1906]
[1754244957347,3.34,161.56,161.54,3.33]
[1754244958756,3.34,161.56,161.55,3.33]
[1754244965062,3.34,161.56,161.53,9.5206]
[1754244965264,3.34,161.56,161.5,6.256814]
[1754244965467,3.34,161.53,161.49,3.33]
[1754244965763,3.34,161.53,161.5,3.33]
[1754244966660,3.34,161.52,161.5,3.33]
[1754244968162,6.1911,161.52,161.47,9.5229]
[1754244968360,3.34,161.51,161.48,3.33]
[1754244969756,6.1915,161.51,161.48,3.33]
[1754244969959,3.34,161.5,161.48,3.33]
[1754244970363,6.1915,161.51,161.46,12.450114]
[1754244970565,3.34,161.5,161.47,3.33]
[1754244970965,3.34,161.49,161.47,3.33]
[1754244971466,3.34,161.51,161.48,3.33]
[1754244971671,3.34,161.52,161.48,3.33]
[1754244972271,3.34,161.51,161.48,3.33]
[1754244973166,3.34,161.51,161.49,6.1923]
[1754244973372,3.34,161.51,161.5,3.33]
[1754244974068,3.34,161.51,161.48,3.19]
[1754244974458,3.34,161.51,161.49,3.19]
[1754244975674,3.37,161.5,161.49,3.19]
[1754244977167,3.37,161.5,161.49,9.3823]
[1754244977670,3.37,161.5,161.49,3.19]
[1754244979172,3.37,161.5,161.46,6.256814]
[1754244979370,3.37,161.5,161.48,3.19]
[1754244979774,3.37,161.52,161.48,3.19]
[1754244980176,3.37,161.52,161.48,6.1927]
[1754244980379,3.37,161.51,161.48,6.1927]
[1754244980577,3.37,161.51,161.5,3.19]
[1754244985376,9.5615,161.51,161.49,3.19]
[1754244985576,3.37,161.5,161.47,6.1929]
[1754244985877,3.37,161.5,161.48,3.19]
[1754244986869,6.23176679,161.49,161.43,3.19]
[1754244987082,3.37,161.49,161.43,3.19]
[1754244987280,9.05605964,161.48,161.44,6.1941]
[1754244987472,6.2325416,161.47,161.45,3.19]
[1754244987778,3.37,161.46,161.45,3.19]
[1754244988177,6.256814,161.49,161.43,3.19]
[1754244988369,7.42793429,161.48,161.43,3.19]
[1754244988571,6.256814,161.49,161.43,3.19]
[1754244988572,3.37,161.46,161.43,3.19]
[1754244988780,3.37,161.45,161.43,3.19]
[1754244989081,3.37,161.44,161.43,3.19]
[1754244991170,3.37,161.45,161.42,6.1948]
[1754244991374,3.37,161.44,161.41,3.19]
[1754244991583,3.37,161.5,161.44,3.19]
[1754244991875,121.80193355,161.51,161.45,6.1935]
[1754244991876,3.37,161.47,161.45,6.1935]
[1754244992082,3.37,161.5,161.44,3.19]
[1754244992284,3.37,161.48,161.44,3.19]
[1754244992482,3.37,161.48,161.47,3.19]
[1754244992678,6.23802953,161.48,161.47,3.19]
[1754244992879,12.43072953,161.48,161.45,3.19]
[1754244993079,12.43072953,161.48,161.44,6.1942]
[1754244993080,3.37,161.46,161.44,6.1942]
[1754244993878,3.37,161.46,161.45,3.19]
[1754244994685,6.23909557,161.46,161.45,3.19]
[1754244995182,6.23996519,161.46,161.45,3.19]
[1754244995482,6.23974188,161.46,161.45,3.19]
[1754244995884,3.37,161.47,161.45,3.19]
[1754244997286,3.37,161.47,161.45,9.3837]
[1754244997488,3.37,161.47,161.46,3.19]
[1754244997786,6.23991992,161.47,161.46,3.19]
[1754244998179,2.86991992,161.47,161.46,9.3834]
[1754244998380,9.562,161.5,161.47,3.19]
[1754244998583,3.37,161.48,161.46,6.1934]
[1754244999283,3.37,161.48,161.47,3.19]
[1754244999482,6.24025456,161.48,161.47,3.19]
[1754244999787,2.87025456,161.48,161.47,3.19]
[1754244999985,6.24025456,161.48,161.47,3.19]
[1754245000483,3.37,161.47,161.46,3.19]
[1754245000685,6.24025456,161.47,161.46,3.19]
[1754245001281,6.24025456,161.47,161.44,6.194]
[1754245001478,3.37,161.46,161.45,3.19]
[1754245005390,6.24102291,161.46,161.45,3.19]
[1754245005883,2.87102291,161.46,161.43,6.1944]
[1754245006081,6.256814,161.49,161.43,9.6844]
[1754245006283,3.48,161.47,161.44,3.49]
[1754245006488,3.48,161.45,161.43,6.1944]
[1754245007186,3.48,161.45,161.44,3.49]
[1754245008291,3.48,161.45,161.44,9.6842]
[1754245008493,3.48,161.45,161.44,3.49]
[1754245009384,6.35334432,161.45,161.44,3.49]
[1754245009690,6.35334432,161.45,161.44,9.6842]
[1754245013996,2.87334432,161.45,161.44,3.49]
[1754245014197,6.35334432,161.45,161.44,3.49]
[1754245015294,6.35334432,161.45,161.37,1.07803352]
[1754245015295,3.48,161.44,161.39,6.256814]
[1754245015497,3.48,161.42,161.39,3.49]
[1754245015796,2.87444792,161.41,161.4,6.1954]
[1754245016001,6.35444792,161.41,161.4,9.6854]
[1754245017205,6.35444792,161.41,161.4,3.49]
[1754245020206,2.87444792,161.41,161.4,15.942514]
[1754245020399,6.256814,161.48,161.41,3.49]
[1754245020599,3.48,161.45,161.39,3.49]
[1754245020797,3.48,161.43,161.39,3.49]
[1754245021507,3.48,161.43,161.4,3.49]
[1754245022001,3.48,161.43,161.4,6.1956]
[1754245022202,3.48,161.43,161.41,3.49]
[1754245022397,6.256814,161.42,161.35,3.49]
[1754245022602,3.48,161.4,161.35,3.49]
[1754245023001,3.48,161.41,161.38,3.49]
[1754245023502,3.48,161.41,161.36,3.49]
[1754245023807,3.48,161.39,161.37,3.49]
[1754245025011,3.48,161.43,161.38,3.49]
[1754245025209,3.48,161.41,161.35,3.49]
[1754245025712,3.48,161.41,161.38,6.1964]
[1754245025908,3.48,161.41,161.39,3.49]
[1754245026209,3.48,161.42,161.37,3.49]
[1754245027200,6.256814,161.46,161.37,6.256814]
[1754245027405,3.48,161.43,161.36,3.49]
[1754245027606,3.48,161.41,161.36,3.49]
[1754245027806,3.48,161.4,161.33,6.256814]
[1754245028007,3.48,161.4,161.35,3.49]
[1754245028209,3.48,161.4,161.36,3.49]
[1754245028712,3.48,161.39,161.37,3.49]
[1754245029015,3.48,161.39,161.33,6.256814]
[1754245029016,3.48,161.38,161.33,6.256814]
[1754245029207,3.48,161.38,161.36,6.197]
[1754245029408,3.48,161.38,161.33,6.256814]
[1754245029610,3.48,161.38,161.34,3.49]
[1754245029816,3.48,161.38,161.36,6.1971]
[1754245030015,3.48,161.38,161.37,3.49]
[1754245030516,3.48,161.38,161.35,9.6876]
[1754245030718,3.48,161.38,161.36,3.49]
[1754245031615,3.48,161.38,161.35,6.1976]
[1754245031815,3.48,161.38,161.37,3.49]
[1754245036216,6.196,161.4,161.37,3.29]
[1754245036620,3.53,161.39,161.37,3.29]
[1754245039922,3.53,161.38,161.37,3.29]
[1754245040218,3.53,161.38,161.35,6.1975]
[1754245040422,3.53,161.38,161.36,3.29]
[1754245040619,3.53,161.38,161.35,6.1975]
[1754245040815,3.53,161.38,161.37,3.29]
[1754245041623,6.1957,161.41,161.37,9.4869]
[1754245041822,3.53,161.39,161.38,3.29]
[1754245042818,6.1957,161.41,161.38,3.29]
[1754245043019,3.53,161.45,161.4,3.29]
[1754245043218,3.53,161.43,161.37,6.256814]
[1754245043422,3.53,161.41,161.38,3.29]
[1754245043824,3.53,161.41,161.39,6.1959]
[1754245044022,3.53,161.41,161.4,3.29]
[1754245045215,3.53,161.41,161.37,6.256814]
[1754245045417,3.53,161.41,161.38,3.29]
[1754245045617,6.256814,161.44,161.35,6.256814]
[1754245045826,3.53,161.42,161.36,3.29]
[1754245046523,3.53,161.43,161.36,3.29]
[1754245046725,3.53,161.43,161.38,3.29]
[1754245047922,3.53,161.43,161.41,6.195]
[1754245048129,3.53,161.43,161.42,3.29]
[1754245049531,3.53,161.44,161.41,3.29]
[1754245049927,3.53,161.44,161.4,6.1956]
[1754245050128,3.53,161.44,161.41,3.29]
[1754245050327,6.256814,161.46,161.39,3.29]
[1754245050528,3.53,161.44,161.39,3.29]
[1754245050726,9.786814,161.44,161.38,3.29]
[1754245050924,3.53,161.42,161.38,3.29]
[1754245051426,3.53,161.4,161.38,3.29]
[1754245051630,3.53,161.39,161.38,6.1964]
[1754245052127,3.53,161.39,161.38,9.4864]
[1754245052326,6.256814,161.44,161.38,9.4864]
[1754245052535,3.53,161.4,161.39,3.29]
[1754245053219,6.256814,161.44,161.39,6.1961]
[1754245053425,3.53,161.42,161.38,3.29]
[1754245053724,3.53,161.41,161.38,3.29]
[1754245055225,3.53,161.41,161.39,6.196]
[1754245055527,3.53,161.41,161.4,3.29]
[1754245055726,9.724,161.45,161.4,9.4855]
[1754245056028,3.53,161.43,161.42,3.29]
[1754245056230,8.08476314,161.43,161.42,3.29]
[1754245056427,8.08476314,161.43,161.41,3.29]
[1754245056729,3.53,161.43,161.41,3.29]
[1754245057229,4.55542611,161.42,161.41,3.29]
[1754245057428,8.08542611,161.42,161.41,3.29]
[1754245059232,8.08793778,161.42,161.41,3.29]
[1754245076043,4.55793778,161.42,161.41,3.29]
[1754245076347,4.55793778,161.42,161.41,9.4853]
[1754245078944,13.08535225,161.47,161.43,3.35]
[1754245079147,3.22,161.44,161.43,3.35]
[1754245079337,7.79115291,161.44,161.43,3.35]
[1754245080946,7.79115291,161.44,161.4,6.1954]
[1754245081147,3.22,161.42,161.4,3.35]
[1754245081442,6.89205225,161.47,161.4,3.35]
[1754245081646,3.22,161.45,161.42,3.35]
[1754245081945,4.57065419,161.44,161.42,3.35]
[1754245082135,3.22,161.45,161.42,3.35]
[1754245082337,4.56765693,161.44,161.43,6.1946]
[1754245082542,4.56765693,161.44,161.43,9.5446]
[1754245082948,3.22,161.48,161.44,3.35]
[1754245084147,3.2,161.48,161.47,3.35]
[1754245084342,7.7644741,161.48,161.47,3.35]
[1754245084744,7.7644741,161.48,161.47,9.543]
[1754245085452,7.76372228,161.48,161.47,3.35]
[1754245085649,3.2,161.48,161.47,3.35]
[1754245088050,3.2,161.48,161.47,9.543]
[1754245088353,3.2,161.48,161.47,3.35]
[1754245089250,130.33928298,161.51,161.47,9.606814]
[1754245089450,3.22,161.54,161.5,3.35]
[1754245089748,3.22,161.56,161.52,3.35]
[1754245090253,3.22,161.55,161.54,3.35]
[1754245091649,3.22,161.55,161.54,9.5404]
[1754245091848,6.1885,161.59,161.54,3.35]
[1754245092047,120.01205225,161.61,161.54,3.35]
[1754245092048,3.22,161.56,161.54,3.35]
[1754245093150,3.22,161.56,161.55,6.19]
[1754245093347,6.1882,161.6,161.55,9.54]
[1754245093542,4.54480963,161.59,161.53,6.256814]
[1754245093746,3.53,161.58,161.56,9.4995]
[1754245093952,3.53,161.58,161.57,3.31]
[1754245094450,3.53,161.58,161.57,9.4992]
[1754245095048,119.3074,161.62,161.57,6.1892]
[1754245095351,3.53,161.6,161.57,3.31]
[1754245095552,3.53,161.6,161.58,3.31]
[1754245095749,6.1877,161.61,161.54,6.256814]
[1754245095952,3.53,161.6,161.57,6.1892]
[1754245096149,3.53,161.59,161.57,6.1892]
[1754245096349,3.53,161.59,161.58,3.31]
[1754245097458,3.53,161.61,161.57,3.31]
[1754245097659,3.53,161.64,161.59,3.31]
[1754245098156,6.1876,161.62,161.59,3.31]
[1754245098359,3.53,161.61,161.59,3.31]
[1754245099161,3.47,161.61,161.59,3.31]
[1754245100861,3.47,161.61,161.6,3.31]
[1754245105349,3.47,161.61,161.56,6.256814]
[1754245105555,6.256814,161.63,161.58,3.31]
[1754245105757,3.53,161.62,161.58,3.31]
[1754245105959,9.7184,161.59,161.56,6.256814]
[1754245106151,3.53,161.58,161.57,3.31]
[1754245108562,3.53,161.57,161.55,3.31]
[1754245110162,6.1892,161.57,161.53,6.1906]
[1754245110361,6.1892,161.57,161.54,3.31]
[1754245110362,3.53,161.56,161.54,3.31]
[1754245111559,6.256814,161.57,161.5,3.31]
[1754245111766,3.53,161.56,161.5,3.31]
[1754245112163,3.53,161.55,161.53,3.31]
[1754245112769,3.53,161.54,161.52,3.31]
[1754245113158,3.53,161.54,161.52,6.1911]
[1754245113364,3.53,161.54,161.53,3.31]
[1754245113866,3.53,161.54,161.51,6.1914]
[1754245114067,3.53,161.54,161.52,3.31]
[1754245114457,3.53,161.53,161.51,3.31]
[1754245116060,6.256814,161.57,161.47,6.256814]
[1754245116266,3.53,161.56,161.48,3.31]
[1754245116469,3.53,161.56,161.52,3.31]
[1754245117569,3.53,161.56,161.55,3.31]
[1754245118393,3.53,161.56,161.55,9.5]
[1754245120367,3.53,161.56,161.55,3.31]
[1754245121472,3.53,161.56,161.55,9.5]
[1754245122671,3.53,161.57,161.56,3.31]
[1754245123074,6.1882,161.6,161.56,9.4996]
[1754245123266,3.53,161.58,161.57,3.31]
[1754245123666,3.53,161.6,161.57,3.31]
[1754245124071,3.26,161.59,161.57,3.31]
[1754245127773,3.26,161.6,161.58,3.34]
[1754245128873,3.26,161.59,161.58,3.34]
[1754245131973,3.26,161.59,161.53,6.256814]
[1754245132281,6.89205225,161.64,161.53,12.447314]
[1754245132282,3.26,161.57,161.53,12.447314]
[1754245132582,3.26,161.57,161.53,6.1905]
[1754245132879,3.26,161.57,161.54,3.34]
[1754245133276,3.26,161.55,161.53,6.1905]
[1754245133782,3.26,161.55,161.54,6.1904]
[1754245133975,3.26,161.55,161.54,9.5304]
[1754245136785,3.26,161.55,161.54,3.34]
[1754245137283,3.26,161.55,161.54,9.5304]
[1754245137577,3.26,161.55,161.52,3.34]
[1754245137773,3.26,161.55,161.5,3.34]
[1754245137774,10.72303622,161.54,161.5,3.34]
[1754245137973,3.26,161.53,161.51,3.34]
[1754245139577,3.26,161.53,161.51,9.5315]
[1754245140084,3.26,161.53,161.51,6.1915]
[1754245140486,3.26,161.53,161.51,9.5315]
[1754245140783,3.26,161.53,161.51,6.1915]
[1754245140975,3.26,161.53,161.52,3.34]
[1754245141176,7.79052506,161.53,161.52,3.34]
[1754245142777,3.26,161.53,161.52,3.34]
[1754245142984,7.78899962,161.53,161.52,3.34]
[1754245143387,3.26,161.53,161.52,3.34]
[1754245147683,3.26,161.53,161.52,9.5311]
[1754245147987,3.26,161.53,161.52,3.34]
[1754245153188,6.89205225,161.6,161.53,3.34]
[1754245153492,3.26,161.58,161.53,3.34]
[1754245153690,7.85257404,161.57,161.53,3.34]
[1754245153886,3.32,161.56,161.53,3.34]
[1754245154289,3.32,161.56,161.55,6.1899]
[1754245154484,3.32,161.56,161.55,9.5499]
[1754245155492,3.32,161.56,161.55,3.36]
[1754245155679,7.85211212,161.56,161.55,3.36]
[1754245156291,3.32,161.56,161.55,3.36]
[1754245157792,3.32,161.56,161.55,9.55]
[1754245160191,3.32,161.56,161.55,3.36]
[1754245160385,7.81749721,161.56,161.55,3.36]
[1754245160588,7.81745574,161.56,161.51,6.256814]
[1754245160889,3.32,161.56,161.55,3.36]
[1754245161290,7.8166812,161.56,161.55,3.36]
[1754245162091,4.4966812,161.56,161.53,3.36]
[1754245162288,4.49655571,161.55,161.48,6.256814]
[1754245162494,7.81615425,161.54,161.47,9.616814]
[1754245162794,13.14886625,161.57,161.48,3.36]
[1754245162795,4.49615425,161.53,161.48,3.36]
[1754245162997,3.32,161.51,161.5,3.36]
[1754245164196,3.32,161.51,161.5,9.5519]
[1754245165498,3.32,161.53,161.5,6.1919]
[1754245165698,3.32,161.53,161.51,3.36]
[1754245170302,3.32,161.52,161.49,9.5523]
[1754245170593,4.4968277,161.51,161.49,3.36]
[1754245170791,3.32,161.5,161.49,3.36]
[1754245170993,3.32,161.5,161.49,9.5523]
[1754245171191,3.32,161.51,161.49,3.36]
[1754245171897,3.32,161.51,161.5,6.1918]
[1754245172097,3.32,161.51,161.5,9.5518]
[1754245173293,3.32,161.53,161.51,3.36]
[1754245173494,4.49811531,161.52,161.51,3.36]
[1754245173697,7.81811531,161.52,161.51,3.36]
[1754245177598,4.49811531,161.52,161.5,9.5518]
[1754245177897,3.32,161.53,161.51,3.36]
[1754245178198,7.8220836,161.52,161.51,3.36]
[1754245180797,4.5020836,161.52,161.51,9.5515]
[1754245181100,3.32,161.55,161.51,3.36]
[1754245181295,3.32,161.55,161.54,6.1904]
[1754245181491,7.82400219,161.55,161.54,9.5504]
[1754245182204,4.50400219,161.55,161.54,9.5504]
[1754245182502,3.32,161.56,161.54,9.5504]
[1754245182699,3.32,161.58,161.55,9.55]
[1754245182902,4.50428891,161.57,161.56,3.36]
[1754245183099,7.82428891,161.57,161.56,3.36]
[1754245186308,4.50428891,161.57,161.56,3.36]
[1754245186506,7.78428891,161.57,161.56,3.36]
[1754245189212,3.28,161.56,161.54,3.23]
[1754245189406,3.28,161.56,161.52,6.256814]
[1754245189603,3.28,161.55,161.53,3.23]
[1754245190513,9.47,161.55,161.53,3.23]
[1754245190811,3.28,161.58,161.51,3.23]
[1754245191011,3.28,161.56,161.51,3.23]
[1754245191211,3.28,161.54,161.51,3.23]
[1754245191412,3.28,161.56,161.54,3.23]
[1754245192005,13.14886625,161.6,161.54,3.23]
[1754245192209,3.28,161.58,161.54,3.23]
[1754245192406,3.28,161.56,161.54,3.23]
[1754245192807,3.28,161.55,161.52,3.23]
[1754245193416,9.47,161.55,161.52,9.4211]
[1754245193609,3.28,161.54,161.52,9.4211]
[1754245194002,3.28,161.54,161.53,3.23]
[1754245194208,7.78695627,161.54,161.53,3.23]
[1754245194908,3.28,161.53,161.51,3.23]
[1754245196107,7.7869769,161.52,161.51,3.23]
[1754245197611,4.5069769,161.52,161.5,3.23]
[1754245197815,3.28,161.51,161.5,3.23]
[1754245198516,7.7860144,161.51,161.5,3.23]
[1754245199314,4.5060144,161.51,161.47,3.23]
[1754245199518,6.256814,161.54,161.47,3.23]
[1754245199519,3.28,161.53,161.47,3.23]
[1754245199710,3.28,161.51,161.47,3.23]
[1754245200716,3.28,161.52,161.47,3.23]
[1754245200928,4.5061824,161.51,161.47,3.23]
[1754245201119,3.28,161.5,161.47,3.23]
[1754245201612,3.28,161.5,161.49,3.23]
[1754245201911,7.78553398,161.5,161.49,3.23]
[1754245202815,3.28,161.5,161.49,3.23]
[1754245204311,7.78782607,161.5,161.49,3.23]
[1754245206120,3.28,161.5,161.49,3.23]
[1754245206320,7.78849471,161.5,161.49,3.23]
[1754245206518,7.78849365,161.5,161.49,9.4223]
[1754245206719,7.78849365,161.5,161.49,6.1923]
[1754245206920,7.78849365,161.5,161.49,9.4223]
[1754245207214,3.28,161.5,161.49,9.4223]
[1754245209411,10.17205225,161.57,161.49,3.23]
[1754245209614,4.51016675,161.56,161.53,3.23]
[1754245209917,3.28,161.57,161.55,3.23]
[1754245210215,7.79042552,161.56,161.55,3.23]
[1754245210924,3.28,161.55,161.53,3.23]
[1754245211125,3.28,161.55,161.52,3.23]
[1754245211326,4.50898147,161.54,161.52,3.23]
[1754245211513,124.88317136,161.6,161.47,3.23]
[1754245211514,4.5091719,161.53,161.47,3.23]
[1754245211717,3.28,161.52,161.47,3.23]
[1754245212020,3.28,161.51,161.47,3.23]
[1754245212522,3.28,161.51,161.5,9.4216]
[1754245215628,3.28,161.51,161.5,3.23]
[1754245216127,3.28,161.51,161.5,9.4219]
[1754245217631,3.28,161.51,161.5,3.23]
[1754245217831,7.78808854,161.51,161.5,3.23]
[1754245218432,7.78730734,161.51,161.5,3.23]
[1754245219020,4.50730734,161.51,161.5,3.23]
[1754245219228,7.79730734,161.51,161.5,3.23]
[1754245219631,3.29,161.5,161.49,3.24]
[1754245219830,3.29,161.5,161.47,3.24]
[1754245220428,3.29,161.5,161.48,3.24]
[1754245220620,3.29,161.5,161.49,3.24]
[1754245228733,3.29,161.53,161.49,4.00784248]
[1754245228938,3.29,161.51,161.5,3.24]
[1754245229739,3.29,161.51,161.5,9.4319]
[1754245230933,3.29,161.52,161.51,6.1914]
[1754245231240,7.80188865,161.52,161.51,9.4314]
[1754245231439,3.29,161.52,161.51,9.4314]
[1754245231640,3.29,161.55,161.51,3.24]
[1754245231941,3.29,161.55,161.54,4.00784248]
[1754245232138,7.80387392,161.55,161.54,13.43824248]
[1754245232334,4.51387392,161.55,161.49,3.24]
[1754245232541,3.29,161.52,161.51,3.24]
[1754245233143,7.8044888,161.52,161.51,3.24]
[1754245233840,7.8044888,161.52,161.51,7.24784248]
[1754245238449,7.8044888,161.52,161.51,13.43934248]
[1754245240334,7.8044888,161.52,161.51,7.24784248]
[1754245244145,7.8044888,161.52,161.5,6.1918]
[1754245244441,3.37,161.5,161.49,3.42]
[1754245244643,7.89329995,161.5,161.49,3.42]
[1754245251444,4.52329995,161.5,161.49,13.62014248]
[1754245251745,3.37,161.52,161.5,3.42]
[1754245253251,3.37,161.52,161.51,9.6113]
[1754245253451,7.89342291,161.52,161.51,9.6113]
[1754245254048,4.52342291,161.52,161.51,9.6113]
[1754245254550,4.00784248,161.56,161.53,6.1907]
[1754245254751,4.52386421,161.55,161.53,6.1907]
[1754245254943,4.00784248,161.56,161.54,3.42]
[1754245255149,7.89381436,161.55,161.54,3.42]
[1754245255747,7.89381436,161.55,161.52,6.191]
[1754245255953,4.52381436,161.54,161.53,3.42]
[1754245256157,7.89381436,161.54,161.53,3.42]
[1754245260353,3.37,161.54,161.53,3.42]